[Event "I Liga Centralne Srbije"]
[Site "Bajina Bašta, Serbia"]
[Date "2020.10.15"]
[Round "8.6"]
[White "Budisavljevic, Luka"]
[Black "Kojovic, Dragan"]
[Result "1/2-1/2"]
[ECO "D36"]
[WhiteElo "2454"]
[BlackElo "2307"]
[Annotator "Knez"]
[PlyCount "96"]
[EventDate "2020.??.??"]
[TimeControl "90"]
[WhiteClock "0:00:47"]
[BlackClock "0:01:53"]

1. d4 {[%emt 0:00:00]} Nf6 {[%emt 0:00:00]} 2. c4 {[%emt 0:00:00]} e6 {[%emt 0:
00:00]} 3. Nc3 {[%emt 0:00:00]} d5 {[%emt 0:00:00]} 4. cxd5 {[%emt 0:00:00]}
exd5 {[%emt 0:00:00]} 5. Bg5 {[%emt 0:00:00]} c6 {[%emt 0:00:00]} 6. e3 {
[%emt 0:00:00]} Be7 {[%emt 0:00:00]} 7. Bd3 {[%emt 0:00:00]} h6 {[%emt 0:00:00]
} 8. Bh4 {[%emt 0:00:00]} Nbd7 {[%emt 0:00:00]} 9. Qc2 {[%emt 0:00:00]} Nh5 {
[%emt 0:00:00]} 10. Bxe7 {[%emt 0:00:00]} Qxe7 {[%emt 0:00:00]} 11. Nge2 {
[%emt 0:00:00]} Ndf6 {[%emt 0:00:00]} 12. O-O-O {[%emt 0:00:00]} g6 {[%emt 0:
00:00]} 13. Kb1 {[%emt 0:00:00]} Ng7 {[%emt 0:00:00]} 14. Ng3 {[%emt 0:00:00]}
Be6 {[%emt 0:00:00]} 15. Rc1 {[%emt 0:00:00]} O-O-O {[%emt 0:00:00]} 16. Na4 {
[%emt 0:00:00]} Kb8 {[%emt 0:00:00]} 17. Nc5 {[%emt 0:00:00]} Bc8 {[%emt 0:00:
00]} 18. Qa4 {[%emt 0:00:00]} Ne6 {[%emt 0:00:00]} 19. Nb3 {[%emt 0:00:00]} h5
{[%emt 0:00:00]} 20. h4 {[%emt 0:00:00]} Ng4 {[%emt 0:00:00]} 21. Rc2 {[%emt 0:
00:00]} f5 {[%emt 0:00:00]} 22. Rhc1 {[%emt 0:00:00]} Rde8 {[%emt 0:00:00]} 23.
Na5 {[%emt 0:00:00]} Nd8 {[%emt 0:00:00]} 24. b4 {[%emt 0:00:00]} Nxf2 {
[%emt 0:00:00]} 25. Rxf2 {[%emt 0:00:00]} Qxe3 {[%emt 0:00:00]} 26. Rf3 {
[%emt 0:00:00]} Qxd4 {[%emt 0:00:00]} 27. Ne2 {[%emt 0:00:00]} Qxh4 {[%emt 0:
00:00]} 28. Qb3 {[%emt 0:00:00]} a6 {[%emt 0:00:00]} 29. Qc3 {[%emt 0:00:00]}
Rh7 {[%emt 0:00:00]} 30. Nd4 {[%emt 0:00:00]} Rc7 {[%emt 0:00:00]} 31. Qc5 {
[%emt 0:00:00]} Ne6 {[%emt 0:00:02]} 32. Nxe6 {[%emt 0:00:00]} Rxe6 {[%emt 0:
00:00]} 33. Nb3 {[%emt 0:00:00]} Qg5 {[%emt 0:00:51]} 34. Bf1 {[%emt 0:00:04]}
Re4 {[%emt 0:00:00]} 35. Qb6 {[%emt 0:00:22]} Qg4 {[%emt 0:00:00]} 36. a3 {
[%emt 0:00:00]} Rce7 {[%emt 0:00:00]} 37. Na5 {[%emt 0:00:22]} Ka8 {[%emt 0:00:
00]} 38. Bxa6 {[%emt 0:00:00]} Re1 {[%emt 0:00:00]} 39. Rfc3 {[%emt 0:00:05]}
bxa6 {[%emt 0:00:00]} 40. Qxc6+ {[%emt 0:00:00]} Bb7 {[%emt 0:00:00]} 41. Nxb7
{[%emt 0:00:00]} Rxc1+ {[%emt 0:00:00]} 42. Rxc1 {[%emt 0:00:00]} Qe4+ {
[%emt 0:00:00]} 43. Kb2 {[%emt 0:00:00]} Qd4+ {[%emt 0:00:00]} 44. Kb3 {
[%emt 0:00:00]} Qd3+ {[%emt 0:00:00]} 45. Rc3 {[%emt 0:00:00]} Qd1+ {[%emt 0:
00:00]} 46. Rc2 {[%emt 0:00:00]} Qd3+ {[%emt 0:00:00]} 47. Rc3 {[%emt 0:00:00]}
Qd1+ {[%emt 0:00:00]} 48. Rc2 {[%emt 0:00:00]} Qd3+ {[%emt 0:00:00]} 1/2-1/2

[Event "I Liga Centralne Srbije"]
[Site "Bajina Bašta, Serbia"]
[Date "2020.10.15"]
[Round "8.6"]
[White "Ostojic, Nikola"]
[Black "Maksimovic, Bojan"]
[Result "1/2-1/2"]
[ECO "E60"]
[WhiteElo "2406"]
[BlackElo "2398"]
[Annotator "Knez"]
[PlyCount "39"]
[EventDate "2020.??.??"]
[TimeControl "90"]
[WhiteClock "0:16:49"]
[BlackClock "0:39:04"]

1. Nf3 {[%emt 0:00:00]} Nf6 {[%emt 0:00:00]} 2. c4 {[%emt 0:00:00]} g6 {
[%emt 0:00:00]} 3. b3 {[%emt 0:00:00]} Bg7 {[%emt 0:00:00]} 4. Bb2 {[%emt 0:00:
00]} O-O {[%emt 0:00:00]} 5. e3 {[%emt 0:00:00]} c5 {[%emt 0:00:00]} 6. Be2 {
[%emt 0:00:00]} Nc6 {[%emt 0:00:00]} 7. O-O {[%emt 0:00:00]} d6 {[%emt 0:00:00]
} 8. d4 {[%emt 0:00:00]} cxd4 {[%emt 0:00:00]} 9. Nxd4 {[%emt 0:00:00]} Nxd4 {
[%emt 0:00:00]} 10. Qxd4 {[%emt 0:00:00]} Bd7 {[%emt 0:00:00]} 11. Nc3 {
[%emt 0:00:00]} Bc6 {[%emt 0:00:00]} 12. Qd2 {[%emt 0:00:00]} Nd7 {[%emt 0:00:
00]} 13. b4 {[%emt 0:00:00]} b6 {[%emt 0:00:00]} 14. a3 {[%emt 0:00:00]} Rc8 {
[%emt 0:00:00]} 15. Rac1 {[%emt 0:00:00]} Nf6 {[%emt 0:00:00]} 16. Rfd1 {
[%emt 0:00:00]} Ba8 {[%emt 0:00:00]} 17. f3 {[%emt 0:00:00]} Qd7 {[%emt 0:00:
00]} 18. e4 {[%emt 0:00:00]} Rfd8 {[%emt 0:00:00]} 19. Nd5 {[%emt 0:00:00]}
Nxd5 {[%emt 0:00:00]} 20. exd5 {[%emt 0:09:08]} 1/2-1/2

[Event "I Liga Centralne Srbije"]
[Site "Bajina Bašta, Serbia"]
[Date "2020.10.15"]
[Round "8.6"]
[White "Jovanovic, Dusan D"]
[Black "Solomunovic, Igor"]
[Result "1-0"]
[ECO "E90"]
[WhiteElo "2412"]
[BlackElo "2355"]
[Annotator "Knez"]
[PlyCount "61"]
[EventDate "2020.??.??"]
[TimeControl "90"]
[WhiteClock "0:01:12"]
[BlackClock "0:04:10"]

1. Nf3 {[%emt 0:00:00]} Nf6 {[%emt 0:00:00]} 2. c4 {[%emt 0:00:00]} g6 {
[%emt 0:00:00]} 3. Nc3 {[%emt 0:00:00]} Bg7 {[%emt 0:00:00]} 4. e4 {[%emt 0:00:
00]} d6 {[%emt 0:00:00]} 5. d4 {[%emt 0:00:00]} O-O {[%emt 0:00:00]} 6. h3 {
[%emt 0:00:00]} Na6 {[%emt 0:00:00]} 7. Be3 {[%emt 0:00:00]} Qe8 {[%emt 0:00:
00]} 8. c5 {[%emt 0:00:00]} dxc5 {[%emt 0:00:00]} 9. dxc5 {[%emt 0:00:00]} Nd7
{[%emt 0:00:00]} 10. Bxa6 {[%emt 0:00:00]} bxa6 {[%emt 0:00:00]} 11. Qc2 {
[%emt 0:00:00]} Rb8 {[%emt 0:00:00]} 12. O-O {[%emt 0:00:00]} Bb7 {[%emt 0:00:
00]} 13. Rac1 {[%emt 0:00:00]} f5 {[%emt 0:00:00]} 14. Nd5 {[%emt 0:00:00]}
Bxd5 {[%emt 0:00:00]} 15. exd5 {[%emt 0:00:00]} e5 {[%emt 0:00:00]} 16. dxe6 {
[%emt 0:00:00]} Qxe6 {[%emt 0:00:00]} 17. b3 {[%emt 0:00:00]} h6 {[%emt 0:00:
00]} 18. Rfe1 {[%emt 0:00:00]} Qf7 {[%emt 0:00:00]} 19. Bf4 {[%emt 0:00:00]}
Rb5 {[%emt 0:00:00]} 20. c6 {[%emt 0:00:00]} Nb6 {[%emt 0:00:00]} 21. Rcd1 {
[%emt 0:00:00]} g5 {[%emt 0:00:00]} 22. Be5 {[%emt 0:00:00]} Rd5 {[%emt 0:00:
07]} 23. Rxd5 {[%emt 0:00:00]} Nxd5 {[%emt 0:00:00]} 24. Bxg7 {[%emt 0:00:00]}
Kxg7 {[%emt 0:00:00]} 25. Qc5 {[%emt 0:00:00]} Rd8 {[%emt 0:00:01]} 26. Nd4 {
[%emt 0:00:00]} Rd6 {[%emt 0:00:00]} 27. Re5 {[%emt 0:00:00]} Kg6 {[%emt 0:00:
49]} 28. Nxf5 {[%emt 0:00:00]} Rd8 {[%emt 0:00:01]} 29. Rxd5 {[%emt 0:00:00]}
Rxd5 {[%emt 0:00:00]} 30. Ne7+ {[%emt 0:00:00]} Kh7 {[%emt 0:00:00]} 31. Nxd5 {
[%emt 0:00:00]} 1-0

[Event "I Liga Centralne Srbije"]
[Site "Bajina Bašta, Serbia"]
[Date "2020.10.15"]
[Round "8.6"]
[White "Rabrenovic, Vladan"]
[Black "Ivanovic, Marko"]
[Result "1-0"]
[ECO "B07"]
[WhiteElo "2302"]
[BlackElo "2277"]
[Annotator "Knez"]
[PlyCount "79"]
[EventDate "2020.??.??"]
[TimeControl "90"]
[WhiteClock "0:00:32"]
[BlackClock "0:03:39"]

1. d4 {[%emt 0:00:00]} d6 {[%emt 0:00:00]} 2. Nf3 {[%emt 0:00:00]} Nf6 {
[%emt 0:00:00]} 3. Nbd2 {[%emt 0:00:00]} Nbd7 {[%emt 0:00:00]} 4. e4 {[%emt 0:
00:00]} e5 {[%emt 0:00:00]} 5. c3 {[%emt 0:00:00]} Be7 {[%emt 0:00:00]} 6. Bd3
{[%emt 0:00:00]} c6 {[%emt 0:00:00]} 7. a4 {[%emt 0:00:00]} O-O {[%emt 0:00:00]
} 8. O-O {[%emt 0:00:00]} b6 {[%emt 0:00:00]} 9. Re1 {[%emt 0:00:00]} Re8 {
[%emt 0:00:00]} 10. h3 {[%emt 0:00:00]} Qc7 {[%emt 0:00:00]} 11. Nf1 {[%emt 0:
00:00]} Bf8 {[%emt 0:00:00]} 12. Ng3 {[%emt 0:00:00]} Bb7 {[%emt 0:00:00]} 13.
Bg5 {[%emt 0:00:00]} h6 {[%emt 0:00:00]} 14. Bd2 {[%emt 0:00:00]} Rad8 {
[%emt 0:00:00]} 15. Qc2 {[%emt 0:00:00]} a6 {[%emt 0:00:00]} 16. b3 {[%emt 0:
00:00]} g6 {[%emt 0:00:00]} 17. Bc1 {[%emt 0:00:00]} Bg7 {[%emt 0:00:00]} 18.
dxe5 {[%emt 0:00:00]} dxe5 {[%emt 0:00:00]} 19. Be3 {[%emt 0:00:00]} Bf8 {
[%emt 0:00:00]} 20. Nd2 {[%emt 0:00:00]} Nc5 {[%emt 0:00:00]} 21. Bf1 {[%emt 0:
00:00]} h5 {[%emt 0:00:00]} 22. b4 {[%emt 0:00:00]} Ncd7 {[%emt 0:00:00]} 23.
Be2 {[%emt 0:00:00]} c5 {[%emt 0:00:00]} 24. b5 {[%emt 0:00:00]} axb5 {[%emt 0:
00:00]} 25. axb5 {[%emt 0:00:00]} h4 {[%emt 0:00:00]} 26. Ngf1 {[%emt 0:00:00]}
c4 {[%emt 0:00:00]} 27. Bg5 {[%emt 0:00:00]} Be7 {[%emt 0:00:00]} 28. Ne3 {
[%emt 0:00:00]} Nc5 {[%emt 0:00:00]} 29. Bxf6 {[%emt 0:00:00]} Bxf6 {[%emt 0:
00:00]} 30. Bxc4 {[%emt 0:00:00]} Rxd2 {[%emt 0:00:00]} 31. Qxd2 {[%emt 0:00:
00]} Nxe4 {[%emt 0:00:00]} 32. Qc2 {[%emt 0:00:00]} Nd6 {[%emt 0:00:48]} 33.
Qxg6+ {[%emt 0:00:00]} Bg7 {[%emt 0:00:00]} 34. Qg4 {[%emt 0:00:00]} e4 {
[%emt 0:00:00]} 35. Bd5 {[%emt 0:00:00]} Bc8 {[%emt 0:00:00]} 36. Qxh4 {
[%emt 0:00:00]} Nxb5 {[%emt 0:00:00]} 37. Bxe4 {[%emt 0:00:00]} Nxc3 {[%emt 0:
00:00]} 38. Bh7+ {[%emt 0:00:00]} Kh8 {[%emt 0:00:08]} 39. Nf5 {[%emt 0:00:00]}
Rxe1+ {[%emt 0:00:02]} 40. Rxe1 {[%emt 0:00:00]} 1-0

[Event "I Liga Centralne Srbije"]
[Site "Bajina Bašta, Serbia"]
[Date "2020.10.15"]
[Round "8.6"]
[White "Djordjevic, Nebojsa"]
[Black "Colovic, Dusan"]
[Result "1-0"]
[ECO "A41"]
[WhiteElo "2255"]
[BlackElo "2255"]
[Annotator "Knez"]
[PlyCount "61"]
[EventDate "2020.??.??"]
[TimeControl "90"]

1. d4 {[%emt 0:49:00]} d6 2. c4 e5 3. e3 Nd7 4. Nc3 g6 5. Nf3 Bg7 6. Be2 Ne7 7.
O-O O-O 8. b3 {[%emt 0:01:11]} Nf5 {[%emt 0:09:49]} 9. Bb2 {[%emt 0:00:24]}
exd4 {[%emt 0:01:48]} 10. Nxd4 {[%emt 0:00:13]} Ne5 {[%emt 0:05:02]} 11. Nxf5 {
[%emt 0:00:32]} Bxf5 {[%emt 0:00:07]} 12. Qd2 {[%emt 0:00:12]} Re8 {[%emt 0:02:
47]} 13. Rad1 {[%emt 0:02:12]} Qh4 {[%emt 0:02:54]} 14. Nb5 {[%emt 0:03:13]}
Re7 {[%emt 0:08:30]} 15. Nd4 {[%emt 0:02:05]} Be4 {[%emt 0:01:35]} 16. f3 {
[%emt 0:07:22]} Bc6 {[%emt 0:00:51]} 17. Qe1 {[%emt 0:03:17]} Qh6 {[%emt 0:16:
51]} 18. Bc1 {[%emt 0:03:05]} f5 {[%emt 0:10:14]} 19. e4 {[%emt 0:09:20]} Qh5 {
[%emt 0:01:17]} 20. f4 {[%emt 0:04:38]} Ng4 {[%emt 0:03:22]} 21. h3 {[%emt 0:
00:12]} Rxe4 {[%emt 0:00:18]} 22. Nxc6 {[%emt 0:00:23]} bxc6 {[%emt 0:12:40]}
23. hxg4 {[%emt 0:17:53]} fxg4 {[%emt 0:00:27]} 24. Bxg4 {[%emt 0:14:19]} Rxe1
{[%emt 0:00:54]} 25. Bxh5 {[%emt 0:00:06]} Rxf1+ {[%emt 0:00:21]} 26. Kxf1 {
[%emt 0:00:11]} gxh5 {[%emt 0:00:05]} 27. Be3 {[%emt 0:00:36]} Kf7 {[%emt 0:05:
14]} 28. Kf2 {[%emt 0:00:14]} c5 {[%emt 0:05:03]} 29. Rd5 {[%emt 0:00:17]} Kg6
{[%emt 0:00:14]} 30. Rg5+ {[%emt 0:00:09]} Kh6 {[%emt 0:03:20]} 31. f5 {
[%emt 0:00:34]} 1-0

[Event "I Liga Centralne Srbije"]
[Site "Bajina Bašta, Serbia"]
[Date "2020.10.15"]
[Round "8.6"]
[White "Mijatovic, Dusan"]
[Black "Maksimovic, Boban"]
[Result "1/2-1/2"]
[ECO "A04"]
[WhiteElo "2177"]
[BlackElo "2216"]
[Annotator "Knez"]
[PlyCount "53"]
[EventDate "2020.??.??"]
[TimeControl "90"]
[WhiteClock "0:20:37"]
[BlackClock "0:29:27"]

1. e4 {[%emt 0:00:00]} e6 {[%emt 0:00:00]} 2. d3 {[%emt 0:00:00]} c5 {[%emt 0:
00:00]} 3. Nf3 {[%emt 0:00:00]} Nc6 {[%emt 0:00:00]} 4. g3 {[%emt 0:00:00]} g6
{[%emt 0:00:00]} 5. Bg2 {[%emt 0:00:00]} Bg7 {[%emt 0:00:00]} 6. O-O {[%emt 0:
00:00]} Nge7 {[%emt 0:00:00]} 7. Re1 {[%emt 0:00:00]} d6 {[%emt 0:00:00]} 8. c3
{[%emt 0:00:00]} e5 {[%emt 0:00:00]} 9. a3 {[%emt 0:00:00]} O-O {[%emt 0:00:00]
} 10. b4 {[%emt 0:00:00]} b6 {[%emt 0:00:00]} 11. Nbd2 {[%emt 0:00:00]} a6 {
[%emt 0:00:00]} 12. Nb3 {[%emt 0:00:00]} Bb7 {[%emt 0:00:00]} 13. Bb2 {[%emt 0:
00:00]} Rc8 {[%emt 0:00:00]} 14. Qe2 {[%emt 0:00:00]} Re8 {[%emt 0:00:00]} 15.
Bh3 {[%emt 0:00:00]} Rc7 {[%emt 0:00:00]} 16. Rf1 {[%emt 0:00:00]} cxb4 {
[%emt 0:00:00]} 17. axb4 {[%emt 0:00:00]} d5 {[%emt 0:00:00]} 18. Rad1 {
[%emt 0:00:00]} d4 {[%emt 0:00:00]} 19. cxd4 {[%emt 0:00:00]} exd4 {[%emt 0:00:
00]} 20. Qd2 {[%emt 0:00:00]} Qd6 {[%emt 0:00:00]} 21. Rc1 {[%emt 0:00:00]} Bc8
{[%emt 0:00:00]} 22. Bg2 {[%emt 0:00:00]} Be6 {[%emt 0:00:00]} 23. e5 {[%emt 0:
00:00]} Nxe5 {[%emt 0:00:00]} 24. Rxc7 {[%emt 0:00:00]} Qxc7 {[%emt 0:00:00]}
25. Nbxd4 {[%emt 0:13:47]} Bd5 {[%emt 0:00:02]} 26. Re1 N7c6 {[%emt 0:00:06]}
27. Nxe5 {[%emt 0:00:02]} 1/2-1/2